Cogmind - Beta 15 @@@ ROGUE MODE // 2025.10.01 @ 16:51:21 Player: winnking222 Result: Destroyed by G-47 Trooper with Particle Gun Performance ------------- Evolutions (0) 0 Regions Visited (2) 400 Robots Destroyed (28) 140 Value Destroyed (560) 560 Prototype IDs (0) 0 Alien Tech Used (0) 0 Bonus (120) 120 TOTAL SCORE: 1220 Bonus ------- Follower Combat Kills 120 Cogmind --------- Core Integrity 0/250 Matter 290/300 Energy 100/100 System Corruption 0% Temperature Cool (9) Movement Walking (190) Ox1 Location -10/Mines Parts ------- > --- POWER (1) -------- (None) > --- PROPULSION (2) --- Aluminum Leg Aluminum Leg > --- UTILITY (2) ------ Large Storage Unit Seismic Detector > --- WEAPON (2) ------- (None) > --- INVENTORY (15) --- Light Treads Light Treads Aluminum Leg Aluminum Leg Compact Wheel Compact Wheel Compact Wheel High-capacity Matter Pod (200) Medium Laser Light Assault Rifle Peak State ------------ > --- POWER ------------ Ion Engine > --- PROPULSION ------- Light Treads Light Treads > --- UTILITY ---------- Large Storage Unit Seismic Detector > --- WEAPON ----------- Light Assault Rifle Light Assault Rifle > --- INVENTORY -------- Ion Engine Light Ion Engine Aluminum Leg Aluminum Leg Wheel Compact Wheel Compact Wheel High-capacity Matter Pod Seismic Detector Medium Laser [Rating: 8] Favorites ----------- Power Ion Engine Engine Ion Engine Propulsion Aluminum Leg Treads Light Treads Leg Aluminum Leg Utility Large Storage Unit Device Seismic Detector Storage Large Storage Unit Weapon Light Assault Rifle Energy Gun Medium Laser Ballistic Gun Light Assault Rifle Build | -11 -10 -10 ------- Run | Yrd Mat Min Slots Evolved . | . . . Power . | . . . Propulsion . | . . . Utility . | . . . Weapon . | . . . Parts Attached 20 | 7 12 1 Power 3 | 1 2 . Engine 3 | 1 2 . Core . | . . . Reactor . | . . . Propulsion 7 | 2 5 . Treads 2 | 2 . . Leg 5 | . 5 . Wheel . | . . . Hover . | . . . Flight . | . . . Utility 4 | 2 1 1 Device 2 | 1 . 1 Storage 2 | 1 1 . Processor . | . . . Hackware . | . . . Protection . | . . . Artifact . | . . . Weapon 6 | 2 4 . Energy Gun 2 | . 2 . Energy Cannon . | . . . Ballistic Gun 4 | 2 2 . Ballistic Cannon . | . . . Launcher . | . . . Special Weapon . | . . . Impact Weapon . | . . . Slashing Weapon . | . . . Piercing Weapon . | . . . Special Melee Weapon . | . . . Unidentified Prototypes . | . . . Parts Lost 11 | . 11 . Power 3 | . 3 . Propulsion 3 | . 3 . Utility 1 | . 1 . Weapon 4 | . 4 . Highest Loss Streak 4 | . 4 . To Critical Strikes . | . . . Average Backups 8 | 5 10 10 Power . | . 1 . Propulsion 5 | 3 6 7 Utility 1 | . 1 1 Weapon . | . . 1 Tool/Special . | . . . Unused Backups 10 | . 3 7 Power 1 | . 1 . Propulsion 8 | . 2 6 Utility 1 | . . 1 Weapon . | . . . Tool/Special . | . . . Average Slot Usage (%) 85 | . 92 53 Engine 9 | . 11 . Treads 4 | . 6 . Leg 22 | . 21 28 Device 8 | . 9 2 Storage 14 | . 14 14 Energy Gun 13 | . 14 4 Ballistic Gun 11 | . 12 4 Peak Build Rating 8 | 7 8 5 Average Rating 6 | 5 7 4 On Entrance 4 | . 7 5 Naked Turns . | . . . Heaviest Build 31 | 13 31 23 Greatest Support 40 | 40 40 20 Greatest Overweight (x) 3 | 3 1 1 Average Overweight (x) . | . . . Largest Inventory Capacity 15 | 8 15 15 Average Capacity 13 | 7 14 15 Most Carried 15 | 8 15 11 Average Carried 8 | 5 10 10 Final Capacity 15 | 8 15 15 Final Carried 10 | 7 9 10 Class Distribution -------------------- 92% | Mutant 7% | Scavenger-Mutant Dominant Class ---------------- Mutant | -10/Materials Mutant | -10/Mines Resources | -11 -10 -10 ----------- Run | Yrd Mat Min Matter Collected 725 | 328 397 . Remotely . | . . . Salvage Created 805 | 207 598 . Parts 57 | 18 39 . Haulers Intercepted . | . . . Recyclers Shooed 2 | . 2 . Parts Field Recycled . | . . . Retrieved Matter . | . . . Parts Self-Destructed . | . . . Prevented . | . . . Kills | -11 -10 -10 ------- Run | Yrd Mat Min Combat Hostiles Destroyed 19 | . 19 . Guns 19 | . 19 . Classes Destroyed 6 | 2 4 . Tunneler 6 | 6 . . Recycler 1 | 1 . . Operator 1 | . 1 . Watcher 1 | . 1 . Swarmer 8 | . 8 . Grunt 11 | . 11 . Best Kill Streak 3 | 2 3 . Combat Bots Only 3 | . 3 . Max Kills in Single Turn 2 | 1 2 . Gunslinging 1 | . 1 . Exploded . | . . . Melee . | . . . Uniques/NPCs Destroyed . | . . . Combat | -11 -10 -10 -------- Run | Yrd Mat Min Hostile Shots Fired 165 | . 149 16 Missed 37 | . 30 7 Hits 128 | . 119 9 Projectile 128 | . 119 9 Critical Strikes 2 | . 2 . Damage Taken 1487 | . 1340 147 Core 252 | . 219 33 Absorbed by Shields . | . . . Core Remaining (%) 100 | 100 . . Volleys Fired 136 | 29 107 . Largest 2 | 2 2 . Hottest 115 | 40 115 . Shots Fired 223 | 58 165 . Gun 223 | 58 165 . Cannon . | . . . Launcher . | . . . Special . | . . . Kinetic 166 | 58 108 . Thermal 57 | . 57 . Explosive . | . . . Electromagnetic . | . . . Robot Hit Streak 12 | 4 12 . Robot Miss Streak 3 | 3 3 . Penetration Max . | . . . Secondary Targets 2 | . 2 . Max Gunslinging Chain 1 | . 1 . Shots Hit Robots 134 | 29 105 . Core Hits 53 | 13 40 . Critical Kills 1 | . 1 . Critical Parts Destroyed 1 | . 1 . Critical Strikes 3 | . 3 . Burn 1 | . 1 . Destroy 2 | . 2 . Melee Attacks . | . . . Impact . | . . . Slashing . | . . . Piercing . | . . . Sneak Attacks . | . . . Combat Hostiles . | . . . Follow-up Attacks . | . . . Damage Inflicted 1256 | 210 1046 . Guns 1252 | 210 1042 . Cannons . | . . . Explosions . | . . . Melee . | . . . Ramming 4 | . 4 . Kinetic 781 | 210 571 . Thermal 471 | . 471 . Explosive . | . . . Electromagnetic . | . . . Impact . | . . . Slashing . | . . . Piercing . | . . . Highest Corruption . | . . . Average Corruption . | . . . Corruption Purged . | . . . Corruption Blocked . | . . . Overload Shots . | . . . Overflow Damage . | . . . Projectiles . | . . . Explosions . | . . . Melee . | . . . Knockbacks . | . . . Impact . | . . . Kinetic . | . . . Secondary . | . . . Self-Inflicted Damage . | . . . Shots . | . . . Rammed . | . . . Targets Rammed 1 | . 1 . Kicked 1 | . 1 . Crushed . | . . . Highest Temperature 500 | . 500 . Average Temperature 108 | . 108 . Received Heat Transfer 699 | . 618 81 Effects 6 | . 6 . Shutdowns 1 | . 1 . Energy Bleed 1 | . 1 . Interference 3 | . 3 . Damage (minor) 1 | . 1 . Siege Activations . | . . . Martial Activations . | . . . Shielding Activations . | . . . Robots Disrupted . | . . . Combat Hostiles . | . . . Robots Corrupted . | . . . Combat Hostiles . | . . . Parts Fried . | . . . Impact Corruptions . | . . . Robots Melted . | . . . Combat Hostiles . | . . . Parts Melted 5 | . 5 . Heat Transferred 1406 | . 1406 . Parts Sabotaged . | . . . Parts Stolen . | . . . Parts Stripped . | . . . Power Chain Reactions . | . . . Alert | -11 -10 -10 ------- Run | Yrd Mat Min Maximum Alert Level . | . . . Low Security (%) 100 | 100 100 100 Level 1 . | . . . Level 2 . | . . . Level 3 . | . . . Level 4 . | . . . Level 5 . | . . . High Security . | . . . Max Security . | . . . Peak Influence 96 | 5 70 96 Initial 10 | . . 10 Average 20 | . 24 37 Influence Increases 695 | 35 524 136 Destroy 0b10 Robot/C 460 | . 380 80 Destroy 0b10 Robot/NC 45 | 35 10 . Destroy Leader 102 | . 82 20 Allied During Kill 6 | . . 6 Successful Hack 22 | . 22 . Lose Combat Pursuer 60 | . 30 30 Influence Decreases 669 | 35 496 138 Entered New Map 18 | . . 18 Time Decay 572 | 35 417 120 Lost Part 79 | . 79 . Squads Dispatched 3 | . 3 . Investigation 1 | . 1 . Extermination . | . . . Reinforcement 2 | . 2 . Assault . | . . . Garrison . | . . . Intercept . | . . . Searches Triggered . | . . . Construction Impeded . | . . . Haulers Reinforced . | . . . Active Scanning Responses . | . . . Cargo Convoy Interrupts . | . . . Stealth | -11 -10 -10 --------- Run | Yrd Mat Min Distress Signals 1 | . 1 . Communications Jammed . | . . . Distress Signals . | . . . Times Spotted 39 | . 31 8 Peak Tracking Total 3 | . 3 2 Tactical Retreats 3 | . 2 1 Traps | -11 -10 -10 ------- Run | Yrd Mat Min Traps Triggered 1 | . 1 . Indirectly . | . . . Trap Hack Attempts . | . . . Triggered . | . . . Disarmed . | . . . Reprogrammed . | . . . Reused . | . . . Traps Extracted . | . . . Installed . | . . . Triggered . | . . . Machines | -11 -10 -10 ---------- Run | Yrd Mat Min Machines Disabled . | . . . Max in Single Turn . | . . . Machines Repaired . | . . . Machines Dismantled . | . . . Machines Sabotaged . | . . . Overloaded Fab Kills . | . . . Hacking | -11 -10 -10 --------- Run | Yrd Mat Min Machines Accessed 7 | . 7 . Terminals 7 | . 7 . Fabricators . | . . . Repair Stations . | . . . Recycling Units . | . . . Scanalyzers . | . . . Garrison Access . | . . . Total Hacks 14 | . 14 . Successful 10 | . 10 . Failed 4 | . 4 . Catastrophic . | . . . Database Lockouts . | . . . Manual 13 | . 13 . Terminals 14 | . 14 . Fabricators . | . . . Repair Stations . | . . . Recycling Units . | . . . Scanalyzers . | . . . Garrison Access . | . . . Terminal Hacks 1 | . 1 . Emergency Access Points 1 | . 1 . Fabricator Hacks . | . . . Repair Station Hacks . | . . . Recycling Unit Hacks . | . . . Scanalyzer . | . . . Garrison Access Hacks . | . . . Unauthorized Hacks 9 | . 9 . Terminals 9 | . 9 . Botnet 3 | . 3 . Skim 6 | . 6 . Fabricators . | . . . Repair Stations . | . . . Recycling Units . | . . . Scanalyzers . | . . . Garrison Access . | . . . Data Cores Recovered . | . . . Used . | . . . Hacking Detections 2 | . 2 . Full Trace Events 1 | . 1 . Feedback Events . | . . . Feedback Blocked . | . . . Robot Schematics Acquired . | . . . Robots Built . | . . . Authchips . | . . . Time . | . . . Total Robot Build Rating . | . . . Part Schematics Acquired . | . . . Parts Built . | . . . Authchips . | . . . Time . | . . . Total Part Build Rating . | . . . Parts Repaired . | . . . Time . | . . . Parts Recycled . | . . . Recycled Matter . | . . . Retrieved Matter . | . . . Retrieved Components . | . . . Parts Scanalyzed . | . . . Part Schematics Acquired . | . . . Parts Damaged . | . . . Bothacking | -11 -10 -10 ------------ Run | Yrd Mat Min Used RIF Installer . | . . . Robots Hacked . | . . . Non-combat . | . . . Combat . | . . . Robot Hacks Applied . | . . . Relay Couplers Released . | . . . Fabnet Peak Effective % . | . . . Robots Rewired . | . . . Allies Hacked . | . . . Hacks Repelled . | . . . Allies | -11 -10 -10 -------- Run | Yrd Mat Min Total Allies 1 | . . 1 Largest Group 1 | . . 1 Highest-Rated Group 31 | . . 31 Highest-Rated Ally 31 | . . 31 Total Orders . | . . . Ally Attacks 11 | . . 11 Total Damage 166 | . . 166 Kills 4 | . . 4 Allies Corrupted . | . . . Allies Melted . | . . . Intel | -11 -10 -10 ------- Run | Yrd Mat Min Active Infowar (turns) 845 | 100 702 43 Seismic 845 | 100 702 43 Robot Analysis Total . | . . . Derelict Logs Recovered 2 | . . 2 Drone Launches . | . . . Drone Recoveries . | . . . Exploration | -11 -10 -10 ------------- Run | Yrd Mat Min Turns Passed 2531 | 584 1623 324 Spaces Moved 1119 | 265 640 214 Core 28 | 28 . . Treads 378 | 237 141 . Legs 713 | . 499 214 Wheels . | . . . Hover . | . . . Flight . | . . . Fastest Speed 50 | 50 160 120 Average Speed 168 | 152 183 143 Slowest Speed 240 | 200 240 190 Overloaded Moves . | . . . Propulsion Burnouts . | . . . Robots Hopped . | . . . Potential Cave-ins . | . . . Cave-ins Triggered . | . . . Exploration Rate (%) 54 | 13 96 53 Regions Visited 2 Branch Regions 1 Pre-discovered Areas 1 | . 1 . Known Exits Taken . | . . . Unknown Exits Taken 2 | 1 1 . Scrap Searched . | . . . Spaces Dug . | . . . Terrain Destroyed . | . . . Melee . | . . . Projectile . | . . . AOE . | . . . Terrain Rammed . | . . . Walls Destroyed . | . . . Machines Disabled . | . . . Actions | -11 -10 -10 --------- Run | Yrd Mat Min Total 1575 | 397 946 232 Wait 266 | 85 166 15 Move 1117 | 264 639 214 Hop . | . . . Pick Up 27 | 12 15 . Fast Attach 2 | 2 . . Attach 16 | 5 10 1 Detach 3 | . 1 2 Swap 2 | . 2 . Drop 5 | . 5 . Fire 136 | 29 107 . Melee . | . . . Ram . | . . . Kick 1 | . 1 . Crush . | . . . Escape Stasis . | . . . Rewire . | . . . Trap . | . . . Miscellaneous . | . . . Route ------- -11/Scrapyard -10/Materials (discovered 6 exits: [*Mat x3] / [*Min x2] / Sub) -10/Mines History --------- Turn | Location | Event 79 | -11/Scrapyard | Discovered new exit (range 13) 585 | -11/Scrapyard | Entered Materials 586 | -10/Materials | Build established: Mutant 952 | -10/Materials | Lost 3 parts (1p1n1w) 955 | -10/Materials | Discovered new exit (range 16) 1009 | -10/Materials | Discovered new exit (range 3) 1065 | -10/Materials | Discovered new exit (range 8) 1182 | -10/Materials | Discovered new exit (range 15) 1461 | -10/Materials | Core integrity fell below 50% 1570 | -10/Materials | Lost 4 parts (1p2n1w) 1574 | -10/Materials | Discovered new exit (range 5) 1997 | -10/Materials | Core integrity fell below 20% 2007 | -10/Materials | Learned location of Mines (-9) 2093 | -10/Materials | Identified exit to Subcaves 2093 | -10/Materials | Learned location of 1 exit from Materials 2179 | -10/Materials | Learned Materials emergency access door positions 2208 | -10/Materials | Entered Mines 2312 | -10/Mines | Learned Materials garrison access intel 2323 | -10/Mines | Received a Mining Laser from a helpful Derelict 2427 | -10/Mines | Learned Materials non-interactive machine intel 2532 | -10/Mines | Destroyed by G-47 Trooper with Particle Gun Last Messages --------------- LOCATION=UNKNOWN GOAL=ESCAPE 02310_ K-01 Serf collects debris. 02312_ Acquired derelict log, extracted data. Data stored: Materials garrison access intel. 02313_ K-01 Serf collects debris. 02321_ A derelict emerges from the shadows: "What are you doing alone down here?" 02323_ Q8-SKO(g): "And why aren't you carrying a mining laser?! Certainly you don't want THEM to uncover you when the ceiling comes crashing down? Here, take my spare." 02326_ Q8-SKO(g): "You're apparently new around these parts, I'll cover you." 02328_ Q8-SKO(g): "Mining lasers are a lot more useful than you might think..." 02335_ G-47 Trooper destroyed. 02403_ R-06 Scavenger collects Sml. Laser. 02427_ Acquired derelict log, extracted data. Data stored: Materials non-interactive machine intel. 02506_ K-01 Serf collects debris. Map ----- +----------------------------------------------------+ | ?????????????????????????????????????????????????? | | ?????????????????????????????????????????????????? | | ?????????????????????????????????????????????????? | | ?????????????????????????????????????????????????? | | ?????????????????????????????????????????????????? | | ?????????????????????????????????????????????????? | | ?????????????????????????????????????????????????? | | ?????????????????????????????????????????????????? | | ?????????????????????????????????????????????????? | | ?????????????????????????????????????????????????? | | ?????????????????????????????????????????????????? | | ?????????????????????????????????????????????????? | | ?????????????????????????????????????????????????? | | ?????????????????????????????????????????????????? | | ?????????????????????????????????? ????????????? | | ????????????????????????????????? #???????????? | | ????????????????#???????????????# #???????????? | | ????????????????? ?????????????# #?????#####?? | | ?????????????????? ???????##### #??????# ?? | | ??????????????????? ?????## #???????# ??? | | ???????????????????# ???## #????????# #??? | | ?????????? ????### ?## #????????# ##?? | | ?????????? ## ## ??????????# ##? | | ????????? g #???????????## #? | | ????????? #???????????# ## | | ????????? @ ##????####### # | | ????????? g ###### | | ????????? #### u ###### | | ?????????? #### #???## ##### #????#### | | ??????????????#### #?????## ##???# #???????## | | ?????????????????####???????# #????# #????????### | | ????????????????????????????# #??### #??????????? | | ????????????????????????????# #### #########??? | | ????????????????????????????# #??? | | ????????????????????????????# ###### #### | | ????????????????????????????###### #????# | | ?????????????????????????????????# #????###### | | ?????????????????????????????????## ######????? | | ??????????????????????????????????## #????? | | ???????????????????????????????????## #### #????? | | ????????????????????????????????????# #??# ###### | | ????????????????????????????????????# %#### | | ????????????????????????????????????# %!######### | | ????????????????????????????????????#### #???????? | | ???????????????????????????????????????#%#???????? | | ????????????????????????????????????#### ##??????? | | ???????????????????????????????????## #####??? | | ???????????????????????????????????# | ##?? | | ???????????????????????????????????# #?? | | ??????????????????????????????????## #?? | +----------------------------------------------------+ Best States ------------- Heat Dissipation 25 Energy Generation 10 Energy Capacity 250 Matter Stores 300 Matter Capacity 300 Sight Range 16 Terrain Scan Density 10 Evasion (%) 55 Recoil Reduction 2 Item Schematics ----------------- None Robot Schematics ------------------ None Fabricated ------------ Nothing Repaired ---------- Nothing Alien Tech Used ----------------- None Achievements -------------- None Challenges ------------ None Game ------ Seed DirtySignalArchive Manual? 0 Play Time 00:12:00 Cumulative 193.2 hours Start 2025.10.01 @ 16:40:22 End 2025.10.01 @ 16:51:21 Sessions 2 Manual Loads 0 Difficulty Rogue Special Mode None Game No. 264 Rogue 264 Adventurer 0 Explorer 0 Win Type - Total 3 Types 2/0/0/1/0/0/0/0/0/0 Lore% 73 Gallery% 72 Achievement% 62 Wizard Run 0 Options --------- Layout 0 ASCII 0 Keyboard 0 Movement Mouse Keybinds 0 Fullscreen 1 Font 16/SmallcapsGlow Map View 75x55 Zoom Use 0% Tactical HUD 1 Map Filters NONE Filters NONE Steam 1 RUN: d11538ec-7fb7-4e54-839d-53ce8cddf7e0